fUSD/lending_fUSD_20251227
["ID","MTS","AMOUNT","RATE_DAILY","PERIOD"]
[399885774,1766808644196,-500.0,0.00025454,2]
[399885775,1766808644207,-500.0,0.00025454,2]
[399885776,1766808644217,-500.0,0.00025454,2]
[399885777,1766808644227,-620.0,0.00025454,2]
[399885778,1766808644236,-151.0,0.00025454,2]
[399885779,1766808644247,-250.0,0.00025454,2]
[399885780,1766808644256,-250.0,0.00025454,2]
[399885781,1766808644265,-250.0,0.00025454,2]
[399885782,1766808644275,-250.0,0.00025454,2]
[399885783,1766808644284,-250.0,0.00025454,2]
[399885784,1766808644294,-250.0,0.00025454,2]
[399885785,1766808644304,-250.0,0.00025454,2]
[399885786,1766808644314,-250.0,0.00025454,2]
[399885787,1766808644323,-322.6107,0.00025454,2]
[399885788,1766808644333,-250.0,0.00025454,2]
[399885789,1766808644343,-250.0,0.00025454,2]
[399885790,1766808644352,-250.0,0.00025454,2]
[399885791,1766808644362,-250.0,0.00025454,2]
[399885792,1766808644371,-250.0,0.00025454,2]
[399885793,1766808644381,-250.0,0.00025454,2]
[399885794,1766808644390,-250.0,0.00025454,2]
[399885795,1766808644400,-250.0,0.00025454,2]
[399885796,1766808644410,-250.0,0.00025454,2]
[399885797,1766808644419,-261.05610334,0.00025454,2]
[399885798,1766808644428,-250.0,0.00025454,2]
[399885799,1766808644439,-250.0,0.00025454,2]
[399885800,1766808644449,-250.0,0.00025454,2]
[399885801,1766808644458,-250.0,0.00025454,2]
[399885802,1766808644468,-250.0,0.00025454,2]
[399885803,1766808644479,-250.0,0.00025454,2]
[399885804,1766808644488,-250.0,0.00025454,2]
[399885805,1766808644498,-250.0,0.00025454,2]
[399885806,1766808644508,-250.0,0.00025454,2]
[399885807,1766808644518,-250.0,0.00025454,2]
[399885808,1766808644528,-250.0,0.00025454,2]
[399885809,1766808644538,-250.0,0.00025454,2]
[399885810,1766808644548,-250.0,0.00025454,2]
[399885811,1766808644558,-250.0,0.00025454,2]
[399885812,1766808644568,-250.0,0.00025454,2]
[399885813,1766808644577,-5526.0,0.000256,3]
[399885814,1766808644587,-3661.1,0.00025773,2]
[399885815,1766808644598,-158.41226066,0.00025848,2]
[399885816,1766808644608,-595.37131296,0.00026002,2]
[399885817,1766808644618,-217.15233878,0.00026002,2]
[399885818,1766808644627,-151.0,0.00026002,2]
[399885819,1766808644636,-315.99,0.00026244,30]
[399885820,1766808644646,-5526.0,0.000264,5]
[399885821,1766808644656,-617.40005154,0.0002655,2]
[399885822,1766808644666,-225.18697532,0.0002655,2]
[399885823,1766808644675,-151.0,0.0002655,2]
[399885824,1766808644685,-150.0,0.00026785,2]
[399885825,1766808644695,-287.61899177,0.00026823,2]
[399885826,1766808644705,-642.94,0.00026823,2]
[399885827,1766808644715,-334.54729591,0.00026823,2]
[399885828,1766808644724,-640.24385344,0.00027098,2]
[399885829,1766808644734,-233.51889342,0.00027098,2]
[399885830,1766808644743,-162.35460953,0.00027098,2]
[399885831,1766808644753,-417.02508394,0.00027218,2]
[399885832,1766808644763,-5296.93102746,0.00027343,2]
[399885833,1766808644773,-558.6,0.00027397,2]
[399885834,1766808644783,-2000.0,0.000275,2]
[399885835,1766808644792,-3661.1,0.00027663,2]
[399885837,1766808644802,-5496.12,0.00027671,2]
[399885838,1766808644811,-2000.0,0.000278,2]
[399885839,1766808644821,-564.0,0.0002783,2]
[399885840,1766808644831,-2431.0,0.0002783,2]
[399885841,1766808644840,-1742.0,0.00028102,5]
[399885842,1766808644850,-151.55467164,0.00028179,2]
[399885843,1766808644860,-365.7207366,0.00028192,2]
[399885844,1766808644870,-613.0,0.00028284,2]
[399885845,1766808644879,-3460.0,0.00028284,2]
[399885846,1766808644888,-1327.0,0.00028284,2]
[399885847,1766808644898,-1610.0,0.00028284,2]
[399885848,1766808644907,-432.0,0.00028284,2]
[399885849,1766808644917,-1263.0,0.00028284,2]
[399885850,1766808644926,-794.436222,0.00028988,2]
[399885851,1766808644935,-150.0,0.00029155,20]
[399885852,1766808644945,-411751.4257114,0.00029156,2]
[399885853,1766808644955,-11966.0698847,0.00029156,2]
[399885854,1766808644964,-3661.1,0.00029552,2]
[399885855,1766808644974,-500.0,0.00030136,2]
[399885856,1766808644983,-500.0,0.00030136,2]
[399885857,1766808644992,-500.0,0.00030136,2]
[399885858,1766808645002,-500.0,0.00030136,2]
[399885859,1766808645011,-500.0,0.00030136,2]
[399885860,1766808645021,-424.86729033,0.00030136,2]
[399885861,1766808645030,-500.04075253,0.00030136,2]
[399885862,1766808645040,-771.04,0.00030136,2]
[399885863,1766808645050,-771.04,0.00030136,2]
[399885864,1766808645059,-771.04,0.00030136,2]
[399885865,1766808645068,-771.04,0.00030136,2]
[399885866,1766808645078,-771.04,0.00030136,2]
[399885867,1766808645088,-771.04,0.00030136,2]
[399885868,1766808645098,-771.04,0.00030136,2]
[399885869,1766808645107,-771.04,0.00030136,2]
[399885870,1766808645117,-558.6,0.00030137,2]
[399885871,1766808645127,-630.49,0.00030137,120]
[399885872,1766808645138,-158.41226066,0.00030199,2]
[399885873,1766808645148,-5296.93102746,0.00030232,2]
[399885874,1766808645158,-315.99,0.0003057,30]
[399885875,1766808645168,-349.50805846,0.00030611,2]
[399885876,1766808645178,-178.17707989,0.00030613,2]
[399885877,1766808645188,-1000.0,0.000312,2]
[399885878,1766808645200,-3661.1,0.00031442,2]
[399885879,1766808645210,-2000.0,0.000315,2]
[399885880,1766808645220,-417.02508394,0.00031809,2]
[399885881,1766808645230,-238.68,0.00031927,2]
[399885882,1766808645241,-558.6,0.00032877,2]
[399885883,1766808645251,-211.57857086,0.00032877,2]
[399885884,1766808645262,-150.0,0.00032877,2]
[399885885,1766808645272,-150.0,0.00032877,2]
[399885886,1766808645282,-151.01627106,0.00032877,2]
[399885887,1766808645292,-154.61005928,0.00032877,2]
[399885888,1766808645302,-150.0,0.00032877,2]
[399885889,1766808645312,-500.0,0.00032877,2]
[399885890,1766808645322,-150.0,0.00032877,2]
[399885891,1766808645333,-150.0,0.00032877,2]
[399885892,1766808645343,-500.0,0.00032877,2]
[399885893,1766808645352,-201.54325372,0.00032877,2]
[399885894,1766808645362,-500.0,0.00032877,2]
[399885895,1766808645372,-500.0,0.00032877,2]
[399885896,1766808645381,-150.0,0.00032877,2]
[399885897,1766808645391,-183.83817514,0.00032877,2]
[399885898,1766808645401,-150.44455097,0.00032877,2]
[399885899,1766808645411,-153.15127595,0.00032877,2]
[399885900,1766808645422,-500.0,0.00032877,2]
[399885901,1766808645432,-500.0,0.00032877,2]
[399885902,1766808645447,-150.0,0.00032877,2]
[399885903,1766808645457,-150.0,0.00032877,2]
[399885904,1766808645467,-500.0,0.00032877,2]
[399885905,1766808645477,-150.0,0.00032877,2]
[399885906,1766808645488,-500.0,0.00032877,2]
[399885907,1766808645497,-500.0,0.00032877,2]
[399885908,1766808645507,-150.0,0.00032877,2]
[399885909,1766808645518,-500.0,0.00032877,2]
[399885910,1766808645528,-500.0,0.00032877,2]
[399885911,1766808645538,-190.71452459,0.00032877,2]
[399885912,1766808645547,-1140.0,0.00032877,2]
[399885913,1766808645556,-150.0,0.00032877,2]
[399885914,1766808645566,-500.0,0.00032877,2]
[399885915,1766808645576,-1412.0,0.00032877,2]
[399885916,1766808645587,-500.0,0.00032877,2]
[399885917,1766808645597,-150.0,0.00032877,2]
[399885918,1766808645606,-150.0,0.00032877,2]
[399885919,1766808645616,-500.0,0.00032877,2]
[399885920,1766808645626,-150.0,0.00032877,2]
[399885921,1766808645636,-500.0,0.00032877,2]
[399885922,1766808645645,-150.0,0.00032877,2]
[399885923,1766808645655,-784.0,0.00032877,2]
[399885924,1766808645665,-600.0,0.00032877,7]
[399885925,1766808645674,-500.0,0.00032877,7]
[399885926,1766808645684,-500.0,0.00032877,7]
[399885927,1766808645694,-500.0,0.00032877,7]
[399885928,1766808645704,-500.0,0.00032877,7]
[399885929,1766808645714,-500.0,0.00032877,7]
[399885930,1766808645724,-500.0,0.00032877,7]
[399885931,1766808645734,-500.0,0.00032877,7]
[399885932,1766808645747,-484.12062315,0.00032877,7]
[399885933,1766808645756,-348.37,0.000329,14]
[399885934,1766808645766,-1644.16,0.000329,14]
[399885935,1766808645775,-209.60852735,0.00032904,2]
[399885936,1766808645785,-150.0,0.00032904,2]
[399885937,1766808645795,-150.0,0.00032904,2]
[399885938,1766808645805,-641.78084703,0.00032904,2]
[399885939,1766808645815,-152.01246559,0.00032904,2]
[399885940,1766808645824,-150.0,0.00032904,2]
[399885941,1766808645834,-500.0,0.00032904,2]
[399885942,1766808645843,-500.0,0.00032904,2]
[399885943,1766808645853,-500.0,0.00032904,2]
[399885944,1766808645863,-150.0,0.00032904,2]
[399885945,1766808645872,-500.0,0.00032904,2]
[399885946,1766808645882,-500.0,0.00032904,2]
[399885947,1766808645891,-150.0,0.00032904,2]
[399885948,1766808645901,-150.0,0.00032904,2]
[399885949,1766808645910,-500.0,0.00032904,2]
[399885950,1766808645920,-563.3794135,0.00032904,2]
[399885951,1766808645929,-150.0,0.00032904,2]
[399885952,1766808645938,-509.8188358,0.00032904,2]
[399885953,1766808645947,-157.51435048,0.00032904,2]
[399885954,1766808645958,-510.3897413,0.00032904,2]
[399885955,1766808645967,-500.0,0.00032904,2]
[399885956,1766808645977,-1140.0,0.00032904,2]
[399885957,1766808646150,-150.0,0.00032904,2]
[399885958,1766808646161,-500.0,0.00032904,2]
[399885959,1766808646171,-1412.0,0.00032904,2]
[399885960,1766808646181,-500.0,0.00032904,2]
[399885961,1766808646190,-150.0,0.00032904,2]
[399885962,1766808646200,-500.0,0.00032904,2]
[399885963,1766808646210,-500.0,0.00032904,2]
[399885964,1766808646220,-150.0,0.00032904,2]
[399885965,1766808646230,-784.0,0.00032904,2]
[399885966,1766808646239,-150.0,0.00032932,2]
[399885967,1766808646249,-206.71715774,0.00032932,2]
[399885968,1766808646260,-235.0639498,0.00032932,2]
[399885969,1766808646270,-416.97318577,0.00032932,2]
[399885970,1766808646280,-601.32715301,0.00032932,2]
[399885971,1766808646290,-225.71094899,0.00032932,2]
[399885972,1766808646300,-150.0,0.00032932,2]
[399885973,1766808646311,-500.0,0.00032932,2]
[399885974,1766808646321,-500.0,0.00032932,2]
[399885975,1766808646331,-157.69537072,0.00032932,2]
[399885976,1766808646340,-150.0,0.00032932,2]
[399885977,1766808646350,-500.0,0.00032932,2]
[399885978,1766808646360,-150.0,0.00032932,2]
[399885979,1766808646370,-500.0,0.00032932,2]
[399885980,1766808646379,-1140.0,0.00032932,2]
[399885981,1766808646389,-206.48945649,0.00032932,2]
[399885982,1766808646399,-224.73392403,0.00032932,2]
[399885983,1766808646408,-1412.0,0.00032932,2]
[399885984,1766808646418,-500.0,0.00032932,2]
[399885985,1766808646428,-150.0,0.00032932,2]
[399885986,1766808646440,-500.0,0.00032932,2]
[399885987,1766808646450,-500.0,0.00032932,2]
[399885988,1766808646460,-150.0,0.00032932,2]
[399885989,1766808646469,-784.0,0.00032932,2]
[399885990,1766808646479,-150.0,0.00032959,2]
[399885991,1766808646489,-193.27062719,0.00032959,2]
[399885992,1766808646499,-386.92412401,0.00032959,2]
[399885993,1766808646509,-500.0,0.00032959,2]
[399885994,1766808646518,-281.79685188,0.00032959,2]
[399885995,1766808646527,-394.80349152,0.00032959,2]
[399885996,1766808646537,-152.49259264,0.00032959,2]
[399885997,1766808646547,-500.0,0.00032959,2]
[399885998,1766808646557,-1140.0,0.00032959,2]
[399885999,1766808646566,-1412.0,0.00032959,2]
[399886000,1766808646576,-500.0,0.00032959,2]
[399886001,1766808646586,-150.0,0.00032959,2]
[399886002,1766808646595,-500.0,0.00032959,2]
[399886003,1766808646605,-500.0,0.00032959,2]
[399886004,1766808646615,-150.0,0.00032959,2]
[399886005,1766808646625,-784.0,0.00032959,2]
[399886006,1766808646634,-156.49228778,0.00032987,2]
[399886007,1766808646645,-500.0,0.00032987,2]
[399886008,1766808646655,-500.0,0.00032987,2]
[399886009,1766808646665,-1140.0,0.00032987,2]
[399886010,1766808646674,-1412.0,0.00032987,2]
[399886011,1766808646683,-500.0,0.00032987,2]
[399886012,1766808646693,-207.79569323,0.00032987,2]
[399886013,1766808646702,-414.86768995,0.00032987,2]
[399886014,1766808646712,-500.0,0.00032987,2]
[399886015,1766808646722,-150.0,0.00032987,2]
[399886016,1766808646731,-784.0,0.00032987,2]
[399886017,1766808646740,-173.0,0.00033,14]
[399886018,1766808646749,-5027.25,0.00033,2]
[399886019,1766808646759,-500.0,0.00033014,2]
[399886020,1766808646768,-633.0,0.00033014,2]
[399886021,1766808646778,-1140.0,0.00033014,2]
[399886022,1766808646788,-1412.0,0.00033014,2]
[399886023,1766808646797,-500.0,0.00033014,2]
[399886024,1766808646807,-500.0,0.00033014,2]
[399886025,1766808646816,-170.01933996,0.00033014,2]
[399886026,1766808646826,-784.0,0.00033014,2]
[399886027,1766808646835,-500.0,0.00033041,2]
[399886028,1766808646846,-1140.0,0.00033041,2]
[399886029,1766808646856,-1412.0,0.00033041,2]
[399886030,1766808646865,-505.39089904,0.00033041,2]
[399886031,1766808646875,-430.41891212,0.00033041,2]
[399886032,1766808646884,-784.0,0.00033041,2]
[399886033,1766808646893,-500.0,0.00033069,2]
[399886034,1766808646904,-1140.0,0.00033069,2]
[399886035,1766808646913,-1412.0,0.00033069,2]
[399886036,1766808646923,-784.0,0.00033069,2]
[399886037,1766808646932,-511.1472808,0.00033096,2]
[399886038,1766808646943,-1140.0,0.00033096,2]
[399886039,1766808646953,-1412.0,0.00033096,2]
[399886040,1766808646962,-784.0,0.00033096,2]
[399886041,1766808646971,-5296.93102746,0.00033121,2]
[399886042,1766808646981,-1140.0,0.00033124,2]
[399886043,1766808646991,-1412.0,0.00033124,2]
[399886044,1766808647000,-784.0,0.00033124,2]
[399886045,1766808647010,-771.04,0.00033143,2]
[399886046,1766808647020,-1140.0,0.00033151,2]
[399886047,1766808647030,-1412.0,0.00033151,2]
[399886048,1766808647039,-784.0,0.00033151,2]
[399886049,1766808647049,-2000.0,0.00033151,2]
[399886050,1766808647058,-200.0,0.00033151,2]
[399886051,1766808647068,-1280.62234173,0.00033151,7]
[399886052,1766808647077,-200.0,0.00033151,2]
[399886053,1766808647088,-331.89017346,0.00033151,2]
[399886054,1766808647097,-372.88,0.00033165,2]
[399886055,1766808647108,-1140.0,0.00033178,2]
[399886056,1766808647117,-1412.0,0.00033178,2]
[399886057,1766808647129,-784.0,0.00033178,2]
[399886058,1766808647139,-1140.0,0.00033206,2]
[399886059,1766808647148,-1412.0,0.00033206,2]
[399886060,1766808647158,-784.0,0.00033206,2]
[399886061,1766808647169,-2669.9910897,0.00033233,2]
[399886062,1766808647179,-1140.0,0.00033233,2]
[399886063,1766808647188,-1412.0,0.00033233,2]
[399886064,1766808647198,-784.0,0.00033233,2]
[399886065,1766808647208,-1140.0,0.00033261,2]
[399886066,1766808647218,-1412.0,0.00033261,2]
[399886067,1766808647227,-784.0,0.00033261,2]
[399886068,1766808647238,-1140.0,0.00033288,2]
[399886069,1766808647248,-1412.0,0.00033288,2]
[399886070,1766808647258,-784.0,0.00033288,2]
[399886071,1766808647268,-330.0,0.00033307,7]
[399886072,1766808647279,-1140.0,0.00033315,2]
[399886073,1766808647288,-1412.0,0.00033315,2]
[399886074,1766808647300,-784.0,0.00033315,2]
[399886075,1766808647310,-328.0,0.00033326,2]
[399886076,1766808647320,-3661.1,0.00033331,3]
[399886077,1766808647332,-1140.0,0.00033343,2]
[399886078,1766808647342,-1412.0,0.00033343,2]
[399886079,1766808647352,-784.0,0.00033343,2]
[399886080,1766808647363,-1140.0,0.0003337,2]
[399886081,1766808647372,-1412.0,0.0003337,2]
[399886082,1766808647382,-784.0,0.0003337,2]
[399886083,1766808647392,-1140.0,0.00033398,2]
[399886084,1766808647403,-1412.0,0.00033398,2]
[399886085,1766808647412,-784.0,0.00033398,2]
[399886086,1766808647423,-1140.0,0.00033425,2]
[399886087,1766808647433,-1412.0,0.00033425,2]
[399886088,1766808647446,-784.0,0.00033425,2]
[399886089,1766808647456,-1140.0,0.00033452,2]
[399886090,1766808647466,-1412.0,0.00033452,2]
[399886091,1766808647476,-784.0,0.00033452,2]
[399886092,1766808647487,-1140.0,0.0003348,2]
[399886093,1766808647498,-1412.0,0.0003348,2]
[399886094,1766808647509,-784.0,0.0003348,2]
[399886095,1766808647518,-1261.80455483,0.00033483,2]
[399886096,1766808647528,-200.0,0.00033483,2]
[399886097,1766808647538,-200.0,0.00033483,2]
[399886098,1766808647548,-1142.89722506,0.00033507,2]
[399886099,1766808647558,-1427.76462783,0.00033507,2]
[399886100,1766808647568,-805.35279565,0.00033507,2]
[399886101,1766808647577,-151.55467164,0.00033815,2]
[399886102,1766808647587,-200.0,0.00033817,2]
[399886103,1766808647596,-200.0,0.00033817,2]
[399886104,1766808647606,-328.0,0.00033926,2]
[399886105,1766808647616,-328.0,0.00033959,2]
[399886106,1766808647626,-328.0,0.0003413,2]
[399886107,1766808647636,-595.7555394,0.00034143,2]
[399886108,1766808647645,-200.0,0.00034156,2]
[399886109,1766808647655,-200.0,0.00034156,2]
[399886110,1766808647667,-91874.1615603,0.00034186,2]
[399886111,1766808647677,-328.0,0.00034195,2]
[399886112,1766808647686,-10970.09,0.000342,14]
[399886113,1766808647696,-5027.25,0.000342,2]
[399886114,1766808647706,-330.0,0.0003427,2]
[399886115,1766808647716,-328.0,0.00034328,2]
[399886116,1766808647727,-328.0,0.00034443,2]
[399886117,1766808647737,-200.0,0.00034497,2]
[399886118,1766808647746,-200.0,0.00034497,2]
[399886119,1766808647758,-348.37,0.000345,14]
[399886120,1766808647767,-1644.16,0.000345,14]
[399886121,1766808647777,-331.0,0.00034504,7]
[399886122,1766808647787,-173.0,0.00034521,30]
[399886123,1766808647798,-158.41226066,0.00034549,2]
[399886124,1766808647808,-328.0,0.00034677,7]
[399886125,1766808647818,-328.0,0.00034755,2]
[399886126,1766808647829,-315.99,0.00034895,30]
[399886127,1766808647839,-1000.0,0.000349,2]
[399886128,1766808647849,-160.51802702,0.00035,2]
[399886129,1766808647859,-10970.09,0.00035,14]
[399886130,1766808647869,-384.15108239,0.00035183,2]
[399886131,1766808647878,-2000.0,0.000352,2]
[399886132,1766808647889,-5027.25,0.000352,2]
[399886133,1766808647899,-3661.1,0.00035221,4]
[399886134,1766808647908,-868.18,0.000353,5]
[399886135,1766808647919,-860.21,0.000353,5]
[399886136,1766808647929,-20499.8963824,0.00035308,2]
[399886137,1766808647939,-771.04,0.00035609,2]
[399886138,1766808647948,-100073.6503265,0.0003561,2]
[399886139,1766808647957,-151.0,0.0003561,31]
[399886140,1766808647967,-151.0,0.0003561,31]
[399886141,1766808647976,-152.630016,0.0003561,30]
[399886142,1766808647986,-151.0,0.0003561,31]
[399886143,1766808647996,-151.0,0.00035616,14]
[399886144,1766808648005,-151.0,0.00035616,2]
[399886145,1766808648015,-151.0,0.00035616,2]
[399886146,1766808648024,-151.0,0.00035616,31]
[399886147,1766808648034,-999.0,0.00035616,120]
[399886148,1766808648044,-151.0,0.00035616,31]
[399886149,1766808648054,-151.0,0.00035616,31]
[399886150,1766808648064,-151.0,0.00035616,31]
[399886151,1766808648074,-500.0,0.00035616,7]
[399886152,1766808648083,-500.0,0.00035616,7]
[399886153,1766808648093,-500.0,0.00035616,7]
[399886154,1766808648103,-500.0,0.00035616,7]
[399886155,1766808648113,-500.0,0.00035616,7]
[399886156,1766808648123,-500.0,0.00035616,7]
[399886157,1766808648133,-500.0,0.00035616,7]
[399886158,1766808648143,-500.0,0.00035616,7]
[399886159,1766808648153,-500.0,0.00035616,7]
[399886160,1766808648163,-500.0,0.00035616,7]
[399886161,1766808648173,-500.0,0.00035616,7]
[399886162,1766808648182,-500.0,0.00035616,7]
[399886163,1766808648192,-500.0,0.00035616,7]
[399886164,1766808648202,-500.0,0.00035616,7]
[399886165,1766808648212,-500.0,0.00035616,7]
[399886166,1766808648221,-500.0,0.00035616,7]
[399886167,1766808648231,-500.0,0.00035616,7]
[399886168,1766808648242,-500.0,0.00035616,7]
[399886169,1766808648252,-500.0,0.00035616,7]
[399886170,1766808648262,-500.0,0.00035616,7]
[399886171,1766808648273,-500.0,0.00035616,7]
[399886172,1766808648284,-500.0,0.00035616,7]
[399886173,1766808648294,-400.0,0.00035616,7]
[399886174,1766808648304,-500.0,0.00035616,7]
[399886175,1766808648314,-500.0,0.00035616,7]
[399886176,1766808648324,-500.0,0.00035616,7]
[399886177,1766808648335,-500.0,0.00035616,7]
[399886178,1766808648345,-500.0,0.00035616,7]
[399886179,1766808648355,-500.0,0.00035616,7]
[399886180,1766808648365,-558.6,0.00035616,2]
[399886181,1766808648374,-865.88,0.00035622,5]
[399886182,1766808648384,-887.19,0.00035633,5]
[399886183,1766808648394,-865.85,0.00035666,5]
[399886184,1766808648404,-863.03,0.00035761,5]
[399886185,1766808648414,-200.0,0.00035787,10]
[399886186,1766808648424,-348.37,0.00036,14]
[399886187,1766808648436,-1644.16,0.00036,14]
[399886188,1766808648446,-5296.93102746,0.00036011,2]
[399886189,1766808648456,-885.37,0.00036027,5]
[399886190,1766808648466,-417.02508394,0.00036399,2]
[399886191,1766808648478,-10970.09,0.000364,14]
[399886192,1766808648487,-170.82,0.00036518,2]
[399886193,1766808648497,-999.0,0.00036712,120]
[399886194,1766808648507,-351.876,0.00036728,46]
[399886195,1766808648518,-5027.25,0.000368,2]
[399886196,1766808648528,-10000.0,0.00037,30]
[399886197,1766808648538,-191.1592758,0.00037083,7]
[399886198,1766808648547,-3661.1,0.0003711,5]
[399886199,1766808648605,-500.0,0.00037356,14]
[399886200,1766808648615,-700.0,0.00037356,14]
[399886201,1766808648625,-900.0,0.00037356,14]
[399886202,1766808648634,-328.0,0.00037661,7]
[399886203,1766808648643,-999.0,0.00037808,120]
[399886204,1766808648656,-3306.36643289,0.0003783,2]
[399886205,1766808648666,-328.0,0.00037946,120]
[399886206,1766808648676,-771.04,0.00037999,2]
[399886207,1766808648686,-239105.9405863,0.00038,30]
[399886208,1766808648695,-348.37,0.00038,14]
[399886209,1766808648705,-1644.16,0.00038,14]
[399886210,1766808648714,-10970.09,0.00038,14]
[399886211,1766808648724,-178.57,0.00038152,2]
[399886212,1766808648734,-178.57,0.00038152,2]
[399886213,1766808648744,-178.57,0.00038152,2]
[399886214,1766808648753,-933.0,0.00038168,20]
[399886215,1766808648762,-700.0,0.00038178,14]
[399886216,1766808648772,-900.0,0.00038178,14]
[399886217,1766808648782,-150.0,0.00038192,2]
[399886218,1766808648792,-150.0,0.00038192,2]
[399886219,1766808648802,-170.86,0.00038192,2]
[399886220,1766808648811,-150.0,0.00038192,2]
[399886221,1766808648821,-150.0,0.00038192,2]
[399886222,1766808648831,-170.86,0.00038192,2]
[399886223,1766808648841,-150.0,0.00038192,2]
[399886224,1766808648851,-150.0,0.00038192,2]
[399886225,1766808648860,-150.0,0.00038192,2]
[399886226,1766808648871,-170.86,0.00038192,2]
[399886227,1766808648880,-150.0,0.00038192,2]
[399886228,1766808648890,-150.0,0.00038192,2]
[399886229,1766808648899,-150.0,0.00038192,2]
[399886230,1766808648909,-170.86,0.00038192,2]
[399886231,1766808648919,-150.0,0.00038192,2]
[399886232,1766808648928,-150.0,0.00038192,2]
[399886233,1766808648937,-150.0,0.00038192,2]
[399886234,1766808648946,-170.86,0.00038192,2]
[399886235,1766808648957,-247.19,0.00038192,2]
[399886236,1766808648967,-170.86,0.00038192,2]
[399886237,1766808648977,-150.0,0.00038192,2]
[399886238,1766808648987,-170.86,0.00038192,2]
[399886239,1766808648997,-150.0,0.00038192,2]
[399886240,1766808649007,-328.0,0.00038202,2]
[399886241,1766808649017,-304.19847285,0.00038436,2]
[399886242,1766808649026,-372.36271561,0.00038436,2]
[399886243,1766808649035,-367.89553156,0.00038436,2]
[399886244,1766808649045,-303.41540829,0.00038436,2]
[399886245,1766808649054,-595.09007448,0.00038436,2]
[399886246,1766808649063,-363.99471825,0.00038436,2]
[399886247,1766808649072,-300.0,0.00038436,2]
[399886248,1766808649082,-452.08468471,0.00038436,2]
[399886249,1766808649091,-303.03037179,0.00038436,2]
[399886250,1766808649101,-577.27091358,0.00038436,2]
[399886251,1766808649111,-1082.41756512,0.00038436,2]
[399886252,1766808649120,-304.19847285,0.00038436,2]
[399886253,1766808649130,-367.89553156,0.00038436,2]
[399886254,1766808649139,-303.41540829,0.00038436,2]
[399886255,1766808649148,-595.09007448,0.00038436,2]
[399886256,1766808649158,-363.99471825,0.00038436,2]
[399886257,1766808649168,-300.0,0.00038436,2]
[399886258,1766808649177,-303.03037179,0.00038436,2]
[399886259,1766808649187,-577.27091358,0.00038436,2]
[399886260,1766808649196,-1082.41756512,0.00038436,2]
[399886261,1766808649206,-304.19847285,0.00038436,2]
[399886262,1766808649216,-367.89553156,0.00038436,2]
[399886263,1766808649226,-303.41540829,0.00038436,2]
[399886264,1766808649236,-595.09007448,0.00038436,2]
[399886265,1766808649246,-363.99471825,0.00038436,2]
[399886266,1766808649256,-300.0,0.00038436,2]
[399886267,1766808649266,-303.03037179,0.00038436,2]
[399886268,1766808649276,-577.27091358,0.00038436,2]
[399886269,1766808649285,-1082.41756512,0.00038436,2]
[399886270,1766808649295,-304.19847285,0.00038436,2]
[399886271,1766808649304,-367.89553156,0.00038436,2]
[399886272,1766808649314,-303.41540829,0.00038436,2]
[399886273,1766808649324,-595.09007448,0.00038436,2]
[399886274,1766808649334,-363.99471825,0.00038436,2]